Cogmind - Beta 14 @@@ ROGUE MODE // 2024.11.17 @ 12:42:57 Player: Dadrick Result: Destroyed by Combat Programmer with EMDS Performance ------------- Evolutions (9) 4500 Regions Visited (33) 6600 Robots Destroyed (240) 1200 Value Destroyed (9065) 9065 Prototype IDs (67) 1340 Alien Tech Used (3) 600 Bonus (9711) 9711 TOTAL SCORE: 33016 Bonus ------- High Alert Combat Kills 229 Follower Combat Kills 1553 Network Hubs Disabled 400 Aligned with FarCom 300 Met Data Miner 300 Met Warlord at Base 500 MAIN.C Attacked Warlord 500 Warlord Defense Kills 2018 Built Enhanced Grunts 300 Found Hidden Lab 3000 Met Warlord at Research 2000 Met Warlord at Command 2000 Friendly Fire -3389 Cogmind --------- Core Integrity 0/1600 Matter 295/300 Energy 99/100 System Corruption 15% Temperature Cool (0) Movement Core (50) Location -1/Command Parts ------- > --- POWER (2) -------- (None) > --- PROPULSION (9) --- (None) > --- UTILITY (12) ----- Enhanced Optical Array Graphene Brace Quantum Router > --- WEAPON (2) ------- (None) > --- INVENTORY (5) ---- ECM Suite Compact HERF Cannon Gamma Bomb Array Phasing Sabre Peak State ------------ > --- POWER ------------ Micro Antimatter Reactor Light Quantum Reactor > --- PROPULSION ------- Impulse Thruster Array Impulse Thruster Array Impulse Thruster Array Experimental Q-thruster Experimental Q-thruster Experimental Q-thruster > --- UTILITY ---------- Experimental Cooling System Large Storage Unit Advanced Weight Redist. System Enhanced Optical Array Experimental Transmission Jammer Graphene Brace Experimental Thermal Shield AEGIS Remote Shield Improved Hacking Suite Improved Hacking Suite Improved System Shield Quantum Router > --- WEAPON ----------- Enhanced Nova Cannon Ionic Axe > --- INVENTORY -------- Fusion Compressor Neutrino Core Micro Antimatter Reactor ECM Suite Compact HERF Cannon Gamma Bomb Array Phasing Sabre [Rating: 193] Favorites ----------- Power Light Nuclear Core Engine Light Angular Momentum Engine Power Core Light Nuclear Core Reactor Light Antimatter Reactor Propulsion Light Treads Treads Light Treads Leg Aluminum Leg Wheel Centrium Wheel Hover Unit Antigrav System Flight Unit Cooled VTOL Module Utility System Shield Device Advanced Heat Sink Storage Huge Storage Unit Processor Enhanced Optical Array Hackware System Shield Protection Makeshift Light Armor Plating Weapon Cooled Pulse Rifle Energy Gun Cooled Pulse Rifle Energy Cannon Beam Cannon Ballistic Gun Light Assault Rifle Ballistic Cannon Light Cannon Launcher Mini Grenade Launcher Special Weapon Mining Laser Impact Weapon Powered Hammer Slashing Weapon Phasing Sabre Piercing Weapon Spear Build | -11 -10 -10 -10 -9 -8 -7 -7 -7 -7 -6 -6 -6 -6 -6 -5 -5 -5 -5 -5 -5 -5 -5 -4 -4 -4 -4 -3 -3 -3 -3 -2 -1 -1 ------- Run | Yrd Mat Min Exi Min Mat Fac Low Low Zio Pro Fac Low Low Dat Pro Fac Was Fac Ext Cet Arc Hub Fac Upp Upp War Pro Res Arm Lab Res Acc Com Slots Evolved 18 | . . . . . 4 2 . . . . 2 . . . . 2 . . . . . . 2 . . . . 2 . . 2 2 . Power 1 | . . . . . . . . . . . . . . . . 1 . . . . . . . . . . . . . . . . . Propulsion 7 | . . . . . 2 1 . . . . 1 . . . . . . . . . . . 1 . . . . . . . 1 1 . Utility 10 | . . . . . 2 1 . . . . 1 . . . . 1 . . . . . . 1 . . . . 2 . . 1 1 . Weapon . | . . . . . . . . . . . . . . . . . . . . . . . . . . . . . . . . . . Parts Attached 411 | 7 23 1 2 2 33 38 6 7 2 8 28 6 8 2 19 11 3 6 37 10 7 4 35 2 5 14 2 8 13 5 23 10 24 Power 44 | 1 1 . . 1 2 1 . . 1 1 . 1 1 . 2 1 2 . 7 3 . 2 2 . 2 . . 1 2 . 5 1 4 Engine 16 | 1 1 . . 1 1 . . . 1 . . 1 . . 1 1 1 . 5 1 . . . . 1 . . . . . . . . Core 13 | . . . . . 1 1 . . . 1 . . 1 . 1 . 1 . 2 1 . 1 . . . . . 1 . . 2 . . Reactor 15 | . . . . . . . . . . . . . . . . . . . . 1 . 1 2 . 1 . . . 2 . 3 1 4 Propulsion 85 | 2 2 . . . 14 9 . 3 . 2 8 2 1 . 6 3 . . 5 1 . 2 11 . 1 . . 1 3 . 4 2 3 Treads 37 | 2 . . . . 12 9 . 3 . 2 7 1 . . 1 . . . . . . . . . . . . . . . . . . Leg 7 | . 2 . . . 2 . . . . . . 1 1 . 1 . . . . . . . . . . . . . . . . . . Wheel 5 | . . . . . . . . . . . . . . . . . . . . . . . 5 . . . . . . . . . . Hover 4 | . . . . . . . . . . . . . . . . . . . 2 . . . 2 . . . . . . . . . . Flight 32 | . . . . . . . . . . . 1 . . . 4 3 . . 3 1 . 2 4 . 1 . . 1 3 . 4 2 3 Utility 130 | 2 4 1 1 1 7 16 2 . 1 1 8 1 2 . 6 4 1 4 9 3 3 . 11 2 1 8 1 4 2 3 9 3 9 Device 79 | 1 1 1 . . 4 11 1 . . . 4 . 2 . 3 3 1 2 6 2 2 . 5 2 1 5 1 3 1 2 4 2 9 Storage 4 | 1 1 . . . 1 . . . . . . . . . . . . . . . . . . . . . . . . . 1 . . Processor 11 | . . . . . . 2 . . . . 1 . . . 1 . . 1 1 1 . . 2 . . 1 . . . . 1 . . Hackware 14 | . . . . . 1 . . . . 1 . . . . 1 . . . . . 1 . 4 . . 1 . 1 . 1 2 1 . Protection 22 | . 2 . 1 1 1 3 1 . 1 . 3 1 . . 1 1 . 1 2 . . . . . . 1 . . 1 . 1 . . Artifact . | . . . . . . . . . . . . . . . . . . . . . . . . . . . . . . . . . . Weapon 152 | 2 16 . 1 . 10 12 4 4 . 4 12 2 4 2 5 3 . 2 16 3 4 . 11 . 1 6 1 2 6 2 5 4 8 Energy Gun 32 | 1 6 . . . 3 7 2 2 . 2 6 . 1 1 . . . . . . . . . . . . . . . 1 . . . Energy Cannon 45 | . . . 1 . 2 . 1 . . . 1 1 . . . 1 . 1 10 2 2 . 1 . . 4 1 1 5 1 4 2 4 Ballistic Gun 6 | 1 3 . . . 1 . . . . . . . . . . . . . . . 1 . . . . . . . . . . . . Ballistic Cannon 14 | . 1 . . . 1 . . . . . 2 . 1 1 1 . . . . . . . 7 . . . . . . . . . . Launcher 36 | . 4 . . . 2 . 1 2 . 2 3 1 2 . 3 1 . 1 5 1 . . 1 . 1 1 . 1 1 . . 1 2 Special Weapon 2 | . 2 . . . . . . . . . . . . . . . . . . . . . . . . . . . . . . . . Impact Weapon 7 | . . . . . 1 5 . . . . . . . . 1 . . . . . . . . . . . . . . . . . . Slashing Weapon 8 | . . . . . . . . . . . . . . . . 1 . . 1 . 1 . . . . 1 . . . . 1 1 2 Piercing Weapon 2 | . . . . . . . . . . . . . . . . . . . . . . . 2 . . . . . . . . . . Special Melee Weapon . | . . . . . . . . . . . . . . . . . . . . . . . . . . . . . . . . . . Unidentified Prototypes 21 | . . . . . . . . . . . 1 . . . . . 1 . . 1 . . . . . 4 . . . 6 6 . 2 Parts Lost 76 | . 3 . . . 4 . . 2 . 2 1 . 4 . 9 . . . 3 3 . 11 2 1 . 1 . 1 1 . 3 1 24 Power 14 | . 1 . . . 2 . . . . . . . 1 . . . . . . 1 . 2 1 . . . . 1 . . 1 . 4 Propulsion 24 | . 1 . . . . . . 2 . 1 1 . 1 . 4 . . . 1 1 . 4 . . . . . . . . 1 . 7 Utility 30 | . 1 . . . . . . . . 1 . . 1 . 3 . . . 2 1 . 4 1 1 . 1 . . 1 . 1 1 11 Weapon 8 | . . . . . 2 . . . . . . . 1 . 2 . . . . . . 1 . . . . . . . . . . 2 Highest Loss Streak 23 | . 1 . . . 2 . . 1 . 2 1 . 4 . 5 . . . 2 3 . 9 2 1 . 1 . 1 1 . 2 1 23 To Critical Strikes 1 | . . . . . . . . . . . . . . . . . . . . 1 . . . . . . . . . . . . . Average Slot Usage (%) 93 | . 99 100 100 100 98 99 100 99 100 99 99 99 94 87 87 83 100 100 96 93 89 80 65 83 88 88 89 88 86 83 84 88 79 Engine 4 | . 13 14 14 14 6 . . . 5 . . 2 . . 2 1 5 5 5 4 5 1 . . 4 5 5 4 4 4 1 . . Core 3 | . . . . . 2 7 7 7 1 6 6 3 5 6 3 5 5 5 4 5 5 3 . . . . . 1 3 . 1 . . Treads 18 | . 22 . . . 35 37 38 37 38 37 39 33 26 26 7 . . . . . . . . . . . . . . . . . . Leg 4 | . 5 28 28 28 . . . . . . . 5 7 13 12 . . . . . . . . . . . . . . . . . . Flight 7 | . . . . . . . . . . . . . . . 8 25 35 35 32 28 29 23 7 21 25 26 26 22 19 19 20 24 21 Device 10 | . 12 13 14 . 11 6 7 7 7 2 6 2 5 6 7 11 11 14 14 12 17 15 12 14 20 20 21 22 22 21 19 16 19 Storage 5 | . 14 14 14 14 9 7 7 7 7 7 6 6 6 6 4 . . . . . . . . . . . . . . . 1 4 3 Processor 5 | . . . . . . 6 7 7 7 7 5 6 6 6 6 5 5 5 5 9 5 5 12 5 5 6 10 9 9 9 8 8 4 Hackware 8 | . . . . . 5 7 7 7 7 12 13 13 13 13 12 11 11 11 11 11 11 11 10 20 15 10 5 7 9 9 12 16 15 Protection 5 | . 1 . . 14 8 8 7 7 7 7 5 10 6 6 5 7 11 7 7 5 5 4 . . . 4 5 4 4 4 4 4 2 Energy Gun 7 | . 13 14 14 . 6 14 14 14 15 14 9 6 6 . 4 . . . . . . . . . . . . . . . . . . Energy Cannon 2 | . . . . 14 5 . . . . . 1 5 . . . . . . 1 4 . . . 5 2 2 1 4 3 4 4 3 1 Ballistic Cannon 2 | . . 14 14 14 2 . . . . . 1 . 5 . 4 . . . . . . . . . . . . . . . . . . Slashing Weapon 1 | . . . . . . . . . . . . . . . . 1 5 5 4 5 5 4 . . . 3 5 4 4 4 4 4 3 Peak Build Rating 193 | 7 8 8 9 15 37 49 49 48 48 49 61 60 61 61 61 68 71 72 82 84 84 84 111 102 110 129 125 131 140 143 172 185 193 Average Rating 60 | 5 7 8 8 14 33 43 47 47 47 47 58 58 56 52 55 57 68 69 73 76 78 75 74 100 104 120 120 128 136 134 161 181 168 On Entrance 70 | . 7 8 8 9 15 34 47 48 47 47 49 57 60 61 61 53 68 71 71 81 77 83 22 100 98 103 120 120 131 137 140 171 176 Naked Turns . | . . . . . . . . . . . . . . . . . . . . . . . . . . . . . . . . . . Heaviest Build 117 | 12 33 33 34 35 100 106 104 104 106 103 107 117 117 103 106 27 24 24 36 34 35 31 37 27 40 46 44 45 49 44 70 71 84 Greatest Support 152 | 40 40 20 20 20 112 111 111 111 111 116 152 152 124 96 96 34 33 33 34 34 32 32 44 44 46 46 50 47 53 53 70 76 76 Greatest Overweight (x) 3 | . 1 1 1 1 3 1 . 1 . 1 . . 1 1 3 . . . 1 . 1 1 2 . . . . . . . 1 . 1 Average Overweight (x) . | . . 1 1 1 . . . . . . . . . . . . . . . . . . . . . . . . . . . . . Largest Inventory Capacity 25 | 8 15 15 15 15 25 25 25 25 25 25 25 25 25 25 25 5 5 5 5 5 5 5 5 5 5 5 5 5 5 5 15 15 15 Average Capacity 16 | 7 14 15 15 15 24 25 25 25 25 25 25 25 25 25 19 5 5 5 5 5 5 5 5 5 5 5 5 5 5 5 8 15 13 Most Carried 25 | 6 15 15 15 15 25 25 25 25 25 25 25 25 25 25 25 5 5 5 5 5 5 5 5 5 5 5 5 5 5 5 15 14 15 Average Carried 16 | 4 12 15 15 14 23 24 24 23 24 23 24 24 22 25 18 4 4 5 4 4 4 5 4 5 4 4 5 4 4 4 8 12 12 Final Capacity 25 | 8 15 15 15 15 25 25 25 25 25 25 25 25 25 25 5 5 5 5 5 5 5 5 5 5 5 5 5 5 5 5 15 15 5 Final Carried 25 | 6 15 15 15 15 25 25 25 23 25 24 25 25 25 25 5 5 5 5 5 5 5 5 5 5 5 5 5 5 5 5 15 14 4 Class Distribution -------------------- 30% | Mutant 21% | Scavenger-Mutant 16% | Hacker-Sprinter 11% | Hacker-Mutant 7% | Skirmisher 4% | Wizard-Sprinter Dominant Class ---------------- Mutant | -10/Materials Mutant | -10/Mines Mutant | -10/Exiles Mutant | -9/Mines Skirmisher | -8/Materials Scavenger-Mutant | -7/Factory Mutant | -7/Lower Caves Mutant | -7/Lower Caves Mutant | -7/Zion Scavenger-Mutant | -6/Proximity Caves Scavenger-Mutant | -6/Factory Scavenger-Mutant | -6/Lower Caves Hacker-Mutant | -6/Lower Caves Hacker-Mutant | -6/Data Miner Hacker-Mutant | -5/Proximity Caves Hacker-Sprinter | -5/Factory Hacker-Sprinter | -5/Waste Hacker-Sprinter | -5/Factory Hacker-Sprinter | -5/Extension Scavenger-Sprinter | -5/Cetus Commander-Sprinter | -5/Archives Scavenger-Sprinter | -5/Hub_04(d) Hacker-Mutant | -4/Factory Hacker-Sprinter | -4/Upper Caves Hacker-Sprinter | -4/Upper Caves Hacker-Sprinter | -4/Warlord Derelict-Sprinter | -3/Proximity Caves Hacker-Sprinter | -3/Research Hacker-Sprinter | -3/Armory Hacker-Sprinter | -3/Lab Hacker-Sprinter | -2/Research Wizard-Sprinter | -1/Access Wizard-Sprinter | -1/Command Resources | -11 -10 -10 -10 -9 -8 -7 -7 -7 -7 -6 -6 -6 -6 -6 -5 -5 -5 -5 -5 -5 -5 -5 -4 -4 -4 -4 -3 -3 -3 -3 -2 -1 -1 ----------- Run | Yrd Mat Min Exi Min Mat Fac Low Low Zio Pro Fac Low Low Dat Pro Fac Was Fac Ext Cet Arc Hub Fac Upp Upp War Pro Res Arm Lab Res Acc Com Matter Collected 6028 | 277 324 44 . 70 668 290 193 149 20 140 451 173 230 . 259 179 54 . 508 119 150 49 359 64 103 195 . 49 135 . 425 70 281 Remotely 624 | . . . . . 138 . . . . . 268 33 185 . . . . . . . . . . . . . . . . . . . . Salvage Created 10536 | 148 708 . . 139 1354 918 142 612 . 354 917 126 455 . 174 321 . 11 863 149 423 218 192 . . 954 . 116 204 . 631 276 131 Parts 461 | 11 39 . . 11 73 42 7 16 . 16 42 1 16 . 4 4 . 1 49 6 23 18 9 . . 24 . 2 9 . 11 18 9 Haulers Intercepted 22 | . 1 . . . 5 3 . . . . 2 . . . . 2 . . 3 . . . . . . . . 1 . . 4 1 . Recyclers Shooed 10 | . . . . . 4 2 . . . . 3 . . . . . . . . . . . . . . . . . . . 1 . . Parts Field Recycled . | . . . . . . . . . . . . . . . . . . . . . . . . . . . . . . . . . . Retrieved Matter . | . . . . . . . . . . . . . . . . . . . . . . . . . . . . . . . . . . Parts Self-Destructed 53 | . . . . . . . 6 13 2 16 . 3 11 . 2 . . . . . . . . . . . . . . . . . . Prevented 11 | . . . . . . . 3 3 . . . . 5 . . . . . . . . . . . . . . . . . . . . Kills | -11 -10 -10 -10 -9 -8 -7 -7 -7 -7 -6 -6 -6 -6 -6 -5 -5 -5 -5 -5 -5 -5 -5 -4 -4 -4 -4 -3 -3 -3 -3 -2 -1 -1 ------- Run | Yrd Mat Min Exi Min Mat Fac Low Low Zio Pro Fac Low Low Dat Pro Fac Was Fac Ext Cet Arc Hub Fac Upp Upp War Pro Res Arm Lab Res Acc Com Combat Hostiles Destroyed 157 | . 19 . . 4 24 9 5 14 . 10 19 4 9 . 6 . . . 9 1 1 1 . . . 16 . . 2 . 1 2 1 Melee 7 | . . . . . 1 . . . . . . . . . . . . . 2 . . . . . . . . . . . 1 2 1 Guns 45 | . 12 . . . 8 7 1 9 . 4 2 . . . 2 . . . . . . . . . . . . . . . . . . Cannons 25 | . . . . 4 9 . . . . . 3 1 3 . . . . . . 1 . . . . . 2 . . 2 . . . . AOE 60 | . 7 . . . 6 . 3 4 . 6 12 3 4 . 4 . . . 6 . . 1 . . . 4 . . . . . . . Classes Destroyed 20 | 2 4 . . . 4 2 2 1 . . . . 1 . 1 . . . 1 . . . . . . 2 . . . . . . . Worker 5 | . . . . . 2 . . . . . . . . . . . . . 1 . . 1 . . . . . . . . . 1 . Builder 6 | . . . . . 1 . . . . . 1 . . . . . . . 2 . . 2 . . . . . . . . . . . Tunneler 5 | 4 . . . . . . . . . . . . . . . . . . 1 . . . . . . . . . . . . . . Hauler 22 | . 1 . . . 5 3 . . . . 2 . . . . 2 . . 3 . . . . . . . . 1 . . 4 1 . Recycler 13 | 1 . . . . 4 3 . . . . 1 . . . . 1 . . 1 . . . 1 . . . . . . . 1 . . Minesweeper 1 | . . . . . . . . . . . . . . . 1 . . . . . . . . . . . . . . . . . . Mechanic 1 | . . . . . . . . . . . . . . . . . . . 1 . . . . . . . . . . . . . . Operator 15 | . . . . . . 1 . . . . 1 . . . . . . 1 . . 9 . 2 . . . . . 1 . . . . Watcher 13 | . 2 . . . 1 2 . . . . 2 . . . . 1 . . 2 . . 1 . . . . . . . . . . 2 Swarmer 32 | . 3 . . . 4 . 3 5 . 3 5 1 . . . . . . 5 . . 1 . . . 2 . . . . . . . Grunt 73 | . 16 . . 4 13 1 . 6 . 6 4 2 5 . 6 . . . 1 . . . . . . 8 . . 1 . . . . Brawler 4 | . . . . . . . . 1 . . 1 . 1 . . . . . . . . . . . . 1 . . . . . . . Duelist 6 | . . . . . . . 1 1 . 1 1 . 1 . . . . . . . . . . . . 1 . . . . . . . Protector 2 | . . . . . . . . . . . . . 1 . . . . . . . . . . . . 1 . . . . . . . Sentry 17 | . . . . . 6 3 . 1 . . 2 1 1 . . . . . 1 . 1 . . . . . . . 1 . . . . Demolisher 2 | . . . . . . . . . . . . . . . . . . . . . . . . . . 2 . . . . . . . Specialist 1 | . . . . . . . . . . . . . . . . . . . . . . . . . . 1 . . . . . . . Hunter 7 | . . . . . 1 1 . . . . 2 . . . . . . . 2 . . . . . . . . . . . . . 1 Programmer 11 | . . . . . . 4 . . . . 4 . . . . . . . . . . . . . . . . . . . 1 2 . Cetus Guard 1 | . . . . . . . . . . . . . . . . . . . . 1 . . . . . . . . . . . . . Enhanced Grunt 1 | . . . . . . . . . . . . . . . . . . . . . . 1 . . . . . . . . . . . Mutant 1 | . . . . . . . 1 . . . . . . . . . . . . . . . . . . . . . . . . . . Best Kill Streak 11 | 3 5 . . 2 8 4 3 11 . 4 10 4 9 . 5 2 . 1 11 1 5 4 1 . . 6 . 1 1 . 1 2 1 Combat Bots Only 11 | . 4 . . 2 5 2 3 11 . 4 7 4 9 . 5 . . . 7 1 1 1 . . . 6 . . 1 . 1 2 1 Max Kills in Single Turn 4 | 1 2 . . 1 3 1 3 2 . 4 4 2 2 . 1 1 . 1 3 1 1 3 1 . . 4 . 1 1 . 1 1 1 Gunslinging 1 | . . . . . . . . . . 1 . . . . . . . . . . . . . . . . . . . . . . . Exploded 4 | . 2 . . . 2 . 3 2 . 4 3 2 2 . 1 . . . 3 . . 1 . . . 2 . . . . . . . Melee 1 | . . . . . 1 . . . . . . . . . . . . . 1 . . . . . . . . . . . 1 1 1 Uniques/NPCs Destroyed 1 | . . . . . . . . . . . . . . . . . . . . 1 . . . . . . . . . . . . . A7 (-5/Cetus) Combat | -11 -10 -10 -10 -9 -8 -7 -7 -7 -7 -6 -6 -6 -6 -6 -5 -5 -5 -5 -5 -5 -5 -5 -4 -4 -4 -4 -3 -3 -3 -3 -2 -1 -1 -------- Run | Yrd Mat Min Exi Min Mat Fac Low Low Zio Pro Fac Low Low Dat Pro Fac Was Fac Ext Cet Arc Hub Fac Upp Upp War Pro Res Arm Lab Res Acc Com Hostile Shots Fired 1285 | . 74 . . 7 153 140 13 58 . 21 106 75 63 . 69 10 . 8 42 26 4 38 61 18 . 25 9 4 38 . 8 42 173 Missed 539 | . 20 . . . 42 49 3 13 . 8 40 27 30 . 25 6 . 5 24 12 2 18 35 12 . 16 9 3 27 . 5 28 80 Damage Taken 15376 | . 628 . . 109 1651 923 200 877 . 228 1278 577 642 . 1210 91 . 57 491 419 81 733 558 140 . 199 . 26 204 . 73 424 3557 Core 3519 | . 74 . . 11 190 85 31 53 . 37 373 69 75 . 170 24 . . 116 59 22 183 244 26 . . . . 45 . . 23 1609 Absorbed by Shields 71 | . . . . . . . . . . . . . . . . . . . 29 22 . . . . . . . . . . . . 20 Redirected to Shielding 100 | . . . . . . . . . . . . . . . . 13 . 22 65 . . . . . . . . . . . . . . Regen/Repaired (Parts) 912 | . . . . . 358 291 . . . . 135 . . . . . . . 75 . . . . . . 53 . . . . . . . Core Remaining (%) 72 | 100 . . . 66 65 . . . . 70 . . . . 19 . . . . . . 59 . . . . 76 . . 100 100 . . Volleys Fired 540 | 17 60 1 . 9 87 61 17 25 . 9 66 13 19 . 16 1 . 1 24 12 3 3 18 . 2 16 1 1 17 . 4 3 34 Largest 2 | 2 2 2 . 2 2 2 2 2 . 2 2 2 2 . 2 1 . 1 1 1 1 1 1 . 1 1 1 1 1 . 1 1 1 Hottest 160 | 70 100 85 . 95 116 120 80 120 . 40 160 145 105 . 73 98 . 98 98 98 60 35 94 . 30 94 30 94 120 . 120 120 120 Shots Fired 845 | 34 106 2 . 18 154 123 28 42 . 13 115 22 26 . 22 1 . 1 25 11 3 3 18 . 2 16 1 1 17 . 4 3 34 Gun 478 | 34 96 1 . . 50 123 25 36 . 8 80 9 7 . 6 . . . . . . 3 . . . . . . . . . . . Cannon 267 | . . 1 . 18 88 . 2 . . . 25 9 7 . 7 1 . 1 15 11 3 . 14 . . 13 . 1 17 . 4 1 29 Launcher 98 | . 8 . . . 16 . 1 6 . 5 10 4 12 . 9 . . . 10 . . . 4 . 2 3 1 . . . . 2 5 Special 2 | . 2 . . . . . . . . . . . . . . . . . . . . . . . . . . . . . . . . Kinetic 168 | 17 50 1 . 9 52 . . . . . 10 . 6 . 7 . . . . . . 3 13 . . . . . . . . . . Thermal 540 | 17 48 1 . 9 86 123 27 36 . 8 95 18 8 . 6 1 . 1 10 9 . . . . . . . . 7 . 2 1 27 Explosive 77 | . 8 . . . 16 . 1 3 . 5 8 4 3 . 9 . . . 10 . . . 4 . 2 3 1 . . . . . . Electromagnetic 60 | . . . . . . . . 3 . . 2 . 9 . . . . . 5 2 3 . 1 . . 13 . 1 10 . 2 2 7 Robot Hit Streak 16 | 5 10 1 . 11 15 14 16 15 . 3 11 7 9 . 8 . . . 6 2 . . . . . 3 . . 2 . 2 1 3 Robot Miss Streak 6 | 3 4 1 . 1 2 4 1 2 . 5 4 2 2 . 2 . . . 2 2 2 . . . . 3 . . 2 . . 6 2 Penetration Max . | . . . . . . . . . . . . . . . . . . . . . . . . . . . . . . . . . . Secondary Targets 5 | . 2 . . . . . . 1 . 1 1 . . . . . . . . . . . . . . . . . . . . . . Max Gunslinging Chain 1 | . 1 . . . . . . 1 . 1 1 . . . . . . . . . . . . . . . . . . . . . . Shots Hit Robots 589 | 22 62 1 . 14 110 81 19 29 . 6 70 15 20 . 13 11 . 1 22 18 11 1 8 . . 5 . 4 7 . 12 9 18 Core Hits 457 | 8 39 . . 6 74 29 8 21 . 22 52 7 27 . 23 3 . . 42 8 12 14 3 . . 24 . 1 4 . 6 9 15 Critical Kills . | . . . . . . . . . . . . . . . . . . . . . . . . . . . . . . . . . . Critical Parts Destroyed 2 | . . . . . 1 . . . . . 1 . . . . . . . . . . . . . . . . . . . . . . Critical Strikes 28 | 2 1 . . 2 5 4 4 2 . . 2 . 1 . . . . . . 1 1 . . . . . . . . . 1 1 1 Burn 17 | 2 1 . . . 2 4 4 2 . . 1 . 1 . . . . . . . . . . . . . . . . . . . . Destroy 1 | . . . . . . . . . . . 1 . . . . . . . . . . . . . . . . . . . . . . Blast 4 | . . . . 2 2 . . . . . . . . . . . . . . . . . . . . . . . . . . . . Smash 1 | . . . . . 1 . . . . . . . . . . . . . . . . . . . . . . . . . . . . Sever 5 | . . . . . . . . . . . . . . . . . . . . 1 1 . . . . . . . . . 1 1 1 Melee Attacks 228 | . . . . . 2 5 . . . . . . . . 1 31 . 6 19 13 11 5 19 1 2 . 4 15 29 3 16 32 14 Impact 27 | . . . . . 2 5 . . . . . . . . 1 19 . . . . . . . . . . . . . . . . . Slashing 179 | . . . . . . . . . . . . . . . . 12 . 6 19 13 11 5 . . . . 4 15 29 3 16 32 14 Piercing 22 | . . . . . . . . . . . . . . . . . . . . . . . 19 1 2 . . . . . . . . Sneak Attacks 44 | . . . . . . . . . . . . . . . 1 3 . 1 6 13 8 1 1 . . . . 1 1 . 4 3 1 Combat Hostiles 4 | . . . . . . . . . . . . . . . . . . . 1 . . . . . . . . . . . . 2 1 Follow-up Attacks 1 | . . . . . . . . . . . . . . . . . . . . . . . . . . . . . . . . 1 . Damage Inflicted 28344 | 208 1144 20 . 265 2903 1718 556 1119 . 980 3586 793 1353 . 1776 722 . 90 2742 915 1398 401 369 . . 2012 . 264 332 . 772 730 1176 Guns 5729 | 208 626 . . . 668 1712 346 590 . 117 1154 120 111 . 77 . . . . . . . . . . . . . . . . . . Cannons 4019 | . . 20 . 255 1090 . . . . . 467 251 216 . 63 . . . 300 203 . . 41 . . 262 . . 231 . 88 . 532 Explosions 12801 | . 514 . . . 1022 . 210 529 . 863 1925 422 1026 . 1558 . . . 1658 . 484 327 46 . . 1750 . . . . . 215 252 Melee 5693 | . . . . . 81 . . . . . . . . . 78 722 . 90 784 712 914 74 282 . . . . 264 101 . 684 515 392 Ramming 102 | . 4 . . 10 42 6 . . . . 40 . . . . . . . . . . . . . . . . . . . . . . Kinetic 1688 | 98 245 20 . 130 752 . . . . . 196 . 184 . 63 . . . . . . . . . . . . . . . . . . Thermal 7529 | 110 381 . . 125 1006 1712 346 590 . 117 1461 371 187 . 77 . . . 275 203 . . . . . . . . . . . 36 532 Explosive 8474 | . 514 . . . 1022 . 210 229 . 863 1792 422 562 . 1558 . . . 883 . . . 46 . . 373 . . . . . . . Electromagnetic 4858 | . . . . . . . . 300 . . 97 . 420 . . . . . 800 . 484 327 41 . . 1639 . . 231 . 88 179 252 Impact 676 | . . . . . 81 . . . . . . . . . 78 517 . . . . . . . . . . . . . . . . . Slashing 4735 | . . . . . . . . . . . . . . . . 205 . 90 784 712 914 74 . . . . . 264 101 . 684 515 392 Piercing 282 | . . . . . . . . . . . . . . . . . . . . . . . 282 . . . . . . . . . . Highest Corruption 26 | . . . . . . 1 1 1 1 . 3 3 3 3 17 . . . 11 13 22 26 . . . 6 6 . . . . 1 15 Average Corruption 4 | . . . . . . 1 1 1 1 . 1 3 3 3 7 . . . 6 12 18 18 . . . 3 6 . . . . 1 2 Corruption Purged 7 | . . . . . . 1 . . . . . . . . . . . . . . 6 . . . . . . . . . . . . Corruption Blocked . | . . . . . . . . . . . . . . . . . . . . . . . . . . . . . . . . . . Effects 167 | . . . . . . 5 4 7 3 . 17 14 19 3 11 . . . 31 13 18 10 . . . 2 4 . . . . . 6 Message Errors 41 | . . . . . . 1 . 1 . . 6 1 6 2 4 . . . 7 4 4 1 . . . . 3 . . . . . 1 Matter Fused 39 | . . . . . . . 1 3 . . 6 6 2 1 1 . . . 7 1 5 4 . . . . 1 . . . . . 1 Heat Flow Errors 14 | . . . . . . . . . 1 . . 3 3 . 1 . . . 1 2 2 1 . . . . . . . . . . . Energy Discharges 25 | . . . . . . . . 1 . . 3 3 7 . 3 . . . 4 1 . 1 . . . 1 . . . . . . 1 Parts Rejected 4 | . . . . . . . . . . . . . . . . . . . 1 . 1 2 . . . . . . . . . . . Parts Fused 2 | . . . . . . . . . . . . . . . . . . . 1 . 1 . . . . . . . . . . . . Data Loss (minor) 19 | . . . . . . 1 1 1 1 . 2 . 1 . . . . . 4 3 3 . . . . 1 . . . . . . 1 Data Loss (major) 3 | . . . . . . . 1 . 1 . . . . . . . . . 1 . . . . . . . . . . . . . . Misfires 5 | . . . . . . 2 . . . . . 1 . . . . . . 2 . . . . . . . . . . . . . . Alerts 3 | . . . . . . . 1 . . . . . . . 1 . . . 1 . . . . . . . . . . . . . . Misdirections 7 | . . . . . . . . . . . . . . . . . . . 1 1 2 1 . . . . . . . . . . 2 Weapon Failures 5 | . . . . . . 1 . 1 . . . . . . 1 . . . 1 1 . . . . . . . . . . . . . Overload Shots 14 | . . . . . . 2 3 5 . . 2 2 . . . . . . . . . . . . . . . . . . . . . Overflow Damage 1280 | . 13 . . . 33 . . 22 . . 89 44 8 . 110 161 . 60 60 70 336 35 28 . . 63 . . 3 . 52 74 19 Projectiles 134 | . . . . . . . . . . . 76 18 . . . . . . 12 . . . . . . 25 . . 3 . . . . Explosions 280 | . 13 . . . . . . 22 . . 13 26 8 . 40 . . . 39 . 38 35 8 . . 38 . . . . . . . Melee 866 | . . . . . 33 . . . . . . . . . 70 161 . 60 9 70 298 . 20 . . . . . . . 52 74 19 Knockbacks 17 | . . 1 . 1 6 . . . . . 5 . . . 3 1 . . . . . . . . . . . . . . . . . Impact 4 | . . . . . . . . . . . 2 . . . 1 1 . . . . . . . . . . . . . . . . . Kinetic 13 | . . 1 . 1 6 . . . . . 3 . . . 2 . . . . . . . . . . . . . . . . . . Secondary . | . . . . . . . . . . . . . . . . . . . . . . . . . . . . . . . . . . Self-Inflicted Damage 602 | . 10 . . . 13 . . 25 . . 81 71 111 . 47 . . . 62 . . 182 . . . . . . . . . . . Shots 21 | . 1 . . . 1 . . 1 . . 4 1 7 . 2 . . . 2 . . 2 . . . . . . . . . . . Rammed 6 | . 2 . . . 2 . . . . . 2 . . . . . . . . . . . . . . . . . . . . . . Targets Rammed 11 | . 2 . . 3 3 1 . . . . 2 . . . . . . . . . . . . . . . . . . . . . . Kicked 3 | . . . . 3 . . . . . . . . . . . . . . . . . . . . . . . . . . . . . Crushed 2 | . . . . . 1 1 . . . . . . . . . . . . . . . . . . . . . . . . . . . Highest Temperature 543 | 90 285 24 . 270 455 84 88 105 108 27 543 235 141 . 192 60 309 . 259 211 238 143 62 353 15 210 . 2 48 . . 48 162 Average Temperature 81 | 39 76 13 . 103 141 23 44 47 58 13 182 75 65 . 56 17 149 . 69 88 60 85 32 267 7 59 . 2 19 . . 17 63 Received Heat Transfer 3264 | . 345 . . 63 756 177 . 234 . 72 189 111 183 . 450 27 . 9 81 36 9 18 9 369 . 18 . . 9 . 9 9 81 Effects 18 | . . . . . 12 . . . . . 6 . . . . . . . . . . . . . . . . . . . . . . Shutdowns 2 | . . . . . 1 . . . . . 1 . . . . . . . . . . . . . . . . . . . . . . Energy Bleed 4 | . . . . . 3 . . . . . 1 . . . . . . . . . . . . . . . . . . . . . . Interference 3 | . . . . . 3 . . . . . . . . . . . . . . . . . . . . . . . . . . . . Short Circuit 3 | . . . . . 2 . . . . . 1 . . . . . . . . . . . . . . . . . . . . . . Damage (minor) 1 | . . . . . . . . . . . 1 . . . . . . . . . . . . . . . . . . . . . . Damage (major) 3 | . . . . . 3 . . . . . . . . . . . . . . . . . . . . . . . . . . . . Damage (core) 2 | . . . . . . . . . . . 2 . . . . . . . . . . . . . . . . . . . . . . Siege Activations . | . . . . . . . . . . . . . . . . . . . . . . . . . . . . . . . . . . Robots Corrupted 20 | . . . . . . . . 1 . . . . 2 . 1 2 . . 1 . 2 . . . . 10 . . . . 1 . . Combat Hostiles 15 | . . . . . . . . 1 . . . . 2 . . . . . 1 . 1 . . . . 10 . . . . . . . Parts Fried 36 | . . . . . . . . 2 . . . . 1 . 2 3 . . 4 . 7 . . . . 15 . . . . 2 . . Impact Corruptions 8 | . . . . . 2 . . . . . . . . . 2 4 . . . . . . . . . . . . . . . . . Robots Melted 5 | . . . . . . 2 1 . . . 2 . . . . . . . . . . . . . . . . . . . . . . Combat Hostiles 5 | . . . . . . 2 1 . . . 2 . . . . . . . . . . . . . . . . . . . . . . Parts Melted 36 | 1 1 . . . 2 15 4 3 . . 7 1 . . . . . . . . . . . . . 1 . . 1 . . . . Heat Transferred 14907 | 481 1184 . . 259 2294 3343 962 1273 . 222 2745 494 345 . 148 . . . 400 300 . . . . . . . . . . . 50 407 Parts Sabotaged 5 | . . . . . . . . . . . . . . . . . . . . . . . . . . . . . 5 . . . . Parts Stolen 1 | . . . . . . . . . . . . 1 . . . . . . . . . . . . . . . . . . . . . Parts Stripped . | . . . . . . . . . . . . . . . . . . . . . . . . . . . . . . . . . . Power Chain Reactions 4 | . . . . . . . . . . . 1 . 2 . . . . . . . . . . . . . . . . . . 1 . Latent Energy Used 1646 | . . . . . . . . . . . . . . . . . . . 552 94 600 . . . . 400 . . . . . . . LE Corruption 28 | . . . . . . . . . . . . . . . . . . . 11 2 9 . . . . 6 . . . . . . . Alert | -11 -10 -10 -10 -9 -8 -7 -7 -7 -7 -6 -6 -6 -6 -6 -5 -5 -5 -5 -5 -5 -5 -5 -4 -4 -4 -4 -3 -3 -3 -3 -2 -1 -1 ------- Run | Yrd Mat Min Exi Min Mat Fac Low Low Zio Pro Fac Low Low Dat Pro Fac Was Fac Ext Cet Arc Hub Fac Upp Upp War Pro Res Arm Lab Res Acc Com Peak Influence 1118 | 25 295 113 . 120 392 146 . . . . 576 . . . . 174 53 114 1056 634 667 1118 858 . . . . 573 320 . 108 303 594 Initial 591 | . 16 113 . . 13 4 . . . . 48 . . . . 79 53 37 55 591 253 233 537 . . . . 490 7 . . 3 101 Average 193 | 13 161 34 . 52 125 57 . . . . 192 . . . . 117 53 60 315 627 589 421 506 . . . . 456 170 . 61 125 413 Maximum Alert Level 4 | . 1 . . . 1 . . . . . 2 . . . . . . . 3 2 2 4 3 . . . . 2 1 . . 1 2 Low Security (%) 67 | 100 57 100 . 100 84 100 . . . . 70 . . . . 100 100 100 25 . . . 11 . . . . 5 65 . 100 86 3 Level 1 14 | . 42 . . . 15 . . . . . 1 . . . . . . . 34 . 16 69 32 . . . . . 34 . . 13 46 Level 2 16 | . . . . . . . . . . . 28 . . . . . . . 35 100 83 13 36 . . . . 94 . . . . 49 Level 3 2 | . . . . . . . . . . . . . . . . . . . 4 . . 12 19 . . . . . . . . . . Level 4 . | . . . . . . . . . . . . . . . . . . . . . . 4 . . . . . . . . . . . Level 5 . | . . . . . . . . . . . . . . . . . . . . . . . . . . . . . . . . . . High Security . | . . . . . . . . . . . . . . . . . . . . . . . . . . . . . . . . . . Max Security . | . . . . . . . . . . . . . . . . . . . . . . . . . . . . . . . . . . Squads Dispatched 49 | . 5 . . . 2 5 . 1 . . 12 . 1 . . 3 . 1 . . . 1 8 . . . . 1 3 . . 3 3 Investigation 9 | . 3 . . . . . . . . . 2 . . . . 2 . . . . . . 2 . . . . . . . . . . Extermination 12 | . . . . . . 4 . . . . 3 . . . . . . . . . . . 3 . . . . . . . . 1 1 Reinforcement 21 | . 2 . . . 2 1 . . . . 4 . . . . 1 . 1 . . . . 3 . . . . 1 3 . . 2 1 Assault 3 | . . . . . . . . 1 . . . . 1 . . . . . . . . . . . . . . . . . . . 1 Garrison 4 | . . . . . . . . . . . 3 . . . . . . . . . . 1 . . . . . . . . . . . Intercept . | . . . . . . . . . . . . . . . . . . . . . . . . . . . . . . . . . . Searches Triggered 2 | . . . . . . . . . . . . . . . . . . . . . . . 1 . . . . 1 . . . . . Construction Impeded 2 | . . . . . 1 . . . . . 1 . . . . . . . . . . . . . . . . . . . . . . Haulers Reinforced 3 | . . . . . . 1 . . . . . . . . . 1 . . . . . . . . . . . . . . . 1 . Active Scanning Responses . | . . . . . . . . . . . . . . . . . . . . . . . . . . . . . . . . . . Cargo Convoy Interrupts 1 | . . . . . . . . . . . 1 . . . . . . . . . . . . . . . . . . . . . . Stealth | -11 -10 -10 -10 -9 -8 -7 -7 -7 -7 -6 -6 -6 -6 -6 -5 -5 -5 -5 -5 -5 -5 -5 -4 -4 -4 -4 -3 -3 -3 -3 -2 -1 -1 --------- Run | Yrd Mat Min Exi Min Mat Fac Low Low Zio Pro Fac Low Low Dat Pro Fac Was Fac Ext Cet Arc Hub Fac Upp Upp War Pro Res Arm Lab Res Acc Com Distress Signals 26 | . 3 . . . 2 2 . . . . . . . . . . . . 1 . . 1 7 . . . . . 3 . 4 . 3 Communications Jammed 36 | . . . . . . . . . . . . . . . . . . . 2 . . . . . . . . . 6 . . . 28 Distress Signals 33 | . . . . . . . . . . . . . . . . . . . 2 . . . . . . . . . 6 . . . 25 Times Spotted 476 | . 28 . . 12 34 18 7 15 . 11 36 7 13 . 19 12 . 8 34 5 6 26 36 4 . 32 7 3 48 . 3 11 41 Peak Tracking Total 19 | . 6 . . 3 8 3 3 7 . 4 7 5 9 . 7 4 . 5 7 5 2 18 10 4 . 9 4 2 19 . 1 4 12 Tactical Retreats 58 | . . . . 5 1 . 2 1 . . 1 . 1 . 4 4 . 2 3 . 1 3 10 . . 1 2 1 9 . 2 2 3 Traps | -11 -10 -10 -10 -9 -8 -7 -7 -7 -7 -6 -6 -6 -6 -6 -5 -5 -5 -5 -5 -5 -5 -5 -4 -4 -4 -4 -3 -3 -3 -3 -2 -1 -1 ------- Run | Yrd Mat Min Exi Min Mat Fac Low Low Zio Pro Fac Low Low Dat Pro Fac Was Fac Ext Cet Arc Hub Fac Upp Upp War Pro Res Arm Lab Res Acc Com Traps Triggered 11 | . 2 . . . . 2 . . . . . . . . . 2 . . 1 . . 1 2 . . . . . . . . 1 . Indirectly 1 | . . . . . . . . . . . . . . . . . . . . . . 1 . . . . . . . . . . . Trap Hack Attempts . | . . . . . . . . . . . . . . . . . . . . . . . . . . . . . . . . . . Triggered . | . . . . . . . . . . . . . . . . . . . . . . . . . . . . . . . . . . Disarmed 6 | . . . . . . . . . . . . . . . . . . . . . . . . . . . . . . . . . 6 Reprogrammed . | . . . . . . . . . . . . . . . . . . . . . . . . . . . . . . . . . . Reused . | . . . . . . . . . . . . . . . . . . . . . . . . . . . . . . . . . . Traps Extracted . | . . . . . . . . . . . . . . . . . . . . . . . . . . . . . . . . . . Installed . | . . . . . . . . . . . . . . . . . . . . . . . . . . . . . . . . . . Triggered 13 | . . . . . . . 1 . . . 1 1 . . 2 . . . . . . 1 . . . 5 2 . . . . . . Machines | -11 -10 -10 -10 -9 -8 -7 -7 -7 -7 -6 -6 -6 -6 -6 -5 -5 -5 -5 -5 -5 -5 -5 -4 -4 -4 -4 -3 -3 -3 -3 -2 -1 -1 ---------- Run | Yrd Mat Min Exi Min Mat Fac Low Low Zio Pro Fac Low Low Dat Pro Fac Was Fac Ext Cet Arc Hub Fac Upp Upp War Pro Res Arm Lab Res Acc Com Machines Disabled 36 | . 1 . . . 1 1 1 . . . 2 . 1 . . . . . 4 . 4 12 . . . 2 . . 4 1 . . 2 Max in Single Turn 6 | . 1 . . . 1 1 1 . . . 1 . 1 . . . . . 1 . 2 6 . . . 2 . . 1 1 . . 2 Garrison Access 6 | . . . . . . 1 . . . . . . . . . . . 1 . . . . . . . . . 2 . . 2 . . Phase Generator 1 | . . . . . . . . . . . . . . . . . . . . . . . . . . . . . . . . . 1 Network Hub 2 | . . . . . . . . . . . . . . . . . . . . . . 2 . . . . . . . . . . . Machines Repaired . | . . . . . . . . . . . . . . . . . . . . . . . . . . . . . . . . . . Machines Dismantled . | . . . . . . . . . . . . . . . . . . . . . . . . . . . . . . . . . . Machines Sabotaged . | . . . . . . . . . . . . . . . . . . . . . . . . . . . . . . . . . . Overloaded Fab Kills . | . . . . . . . . . . . . . . . . . . . . . . . . . . . . . . . . . . Hacking | -11 -10 -10 -10 -9 -8 -7 -7 -7 -7 -6 -6 -6 -6 -6 -5 -5 -5 -5 -5 -5 -5 -5 -4 -4 -4 -4 -3 -3 -3 -3 -2 -1 -1 --------- Run | Yrd Mat Min Exi Min Mat Fac Low Low Zio Pro Fac Low Low Dat Pro Fac Was Fac Ext Cet Arc Hub Fac Upp Upp War Pro Res Arm Lab Res Acc Com Machines Accessed 106 | . 8 . 2 . 11 15 1 . . . 4 . . 4 . 8 . 4 4 2 . 3 10 1 1 1 . 10 4 . 2 4 7 Terminals 68 | . 7 . . . 7 9 . . . . 2 . . . . 4 . 2 3 2 . 3 7 . . . . 6 4 . 1 4 7 Fabricators 6 | . . . . . . 1 . . . . . . . . . 2 . . . . . . 2 . . . . 1 . . . . . Repair Stations 6 | . . . . . 2 1 . . . . 1 . . . . . . . 1 . . . . . . . . 1 . . . . . Recycling Units 6 | . 1 . . . . 2 . . . . . . . . . 1 . 1 . . . . 1 . . . . . . . . . . Scanalyzers 3 | . . . . . 1 1 . . . . . . . . . 1 . . . . . . . . . . . . . . . . . Garrison Access 7 | . . . . . 1 1 . . . . 1 . . . . . . 1 . . . . . . . . . 2 . . 1 . . Total Hacks 375 | . 20 . 2 . 34 53 1 . . . 14 . . 32 . 23 . 9 16 6 . 7 47 1 1 1 . 31 14 . 12 28 23 Successful 210 | . 9 . 2 . 17 21 1 . . . 6 . . 32 . 13 . 5 14 5 . 2 28 1 1 1 . 15 11 . 4 10 12 Failed 165 | . 11 . . . 17 32 . . . . 8 . . . . 10 . 4 2 1 . 5 19 . . . . 16 3 . 8 18 11 Catastrophic 40 | . . . . . 5 7 . . . . . . . . . 2 . . 1 . . . 4 . . . . 7 3 . 3 4 4 Database Lockouts . | . . . . . . . . . . . . . . . . . . . . . . . . . . . . . . . . . . Manual 114 | . 4 . 1 . 12 12 . . . . 5 . . . . 7 . 6 2 1 . 1 24 . . 1 . 14 6 . . 16 2 Terminals 258 | . 19 . . . 21 40 . . . . 9 . . . . 12 . 7 6 6 . 7 39 . . . . 21 14 . 6 28 23 Fabricators 19 | . . . . . . 2 . . . . . . . . . 8 . . . . . . 5 . . . . 4 . . . . . Repair Stations 24 | . . . . . 4 7 . . . . 1 . . . . . . . 10 . . . . . . . . 2 . . . . . Recycling Units 8 | . 1 . . . . 2 . . . . . . . . . 1 . 1 . . . . 3 . . . . . . . . . . Scanalyzers 10 | . . . . . 7 1 . . . . . . . . . 2 . . . . . . . . . . . . . . . . . Garrison Access 18 | . . . . . 2 1 . . . . 4 . . . . . . 1 . . . . . . . . . 4 . . 6 . . Terminal Hacks 136 | . 8 . 2 . 7 12 1 . . . 3 . . 32 . 3 . 2 2 5 . 2 16 1 1 1 . 10 8 . 3 5 12 Record 17 | . . . 1 . . . . . . . . . . 11 . . . . . 4 . . . . . . . . 1 . . . . Part Schematic 18 | . . . . . . 2 . . . . 1 . . 12 . . . . . . . . 2 . . . . . 1 . . . . Robot Schematic 6 | . . . . . . . . . . . . . . 6 . . . . . . . . . . . . . . . . . . . Robot Analysis 2 | . 2 . . . . . . . . . . . . . . . . . . . . . . . . . . . . . . . . Prototype ID Bank 10 | . 1 . . . 3 2 . . . . . . . 3 . . . . 1 . . . . . . . . . . . . . . Open Door 7 | . . . . . . . 1 . . . . . . . . . . 1 . 1 . . . 1 1 1 . . 1 . . . . Level Access Points 1 | . . . . . . . . . . . . . . . . . . . . . . . . . . . . 1 . . . . . Branch Access Points 5 | . . . . . . 1 . . . . 1 . . . . 1 . . . . . . 1 . . . . . . . 1 . . Emergency Access Points 4 | . . . . . . . . . . . . . . . . . . . . . . . . . . . . 1 . . . . 3 Terminal Index 8 | . . . . . . 1 . . . . . . . . . 1 . 1 . . . . 1 . . . . 1 1 . . 1 1 Fabricator Index 2 | . . . . . . . . . . . . . . . . . . . . . . . 1 . . . . . . . . 1 . Repair Station Index 1 | . . . . . . . . . . . . . . . . . . . . . . . . . . . . . . . . . 1 Alert Level 7 | . . . . . 1 1 . . . . . . . . . . . . . . . . 1 . . . . 2 . . . 1 1 Unreport Threat 7 | . . . . . 2 . . . . . . . . . . . . . . . . . 2 . . . . 3 . . . . . Locate Traps 17 | . 3 . . . . 3 . . . . . . . . . 1 . . 1 . . . 4 . . . . . 2 . . . 3 Disarm Traps 1 | . . . . . . . . . . . . . . . . . . . . . . . . . . . . . . . . . 1 Recall Extermination 2 | . . . . . . . . . . . . . . . . . . . . . . . 2 . . . . . . . . . . Hauler Manifests 6 | . 1 . . . 1 1 . . . . 1 . . . . . . . . . . . . . . . . 1 . . 1 . . Registered Components 1 | . . . . . . . . . . . . . . . . . . . . . . . 1 . . . . . . . . . . Registered Prototypes 1 | . . . . . . . . . . . . . . . . . . . . . . . . . . . . 1 . . . . . Zone Layout 10 | . 1 . . . . 1 . . . . . . . . . . . . . . . 2 1 . . . . . 2 . 1 2 . Derelict Proto ID Bank 1 | . . . 1 . . . . . . . . . . . . . . . . . . . . . . . . . . . . . . Disengage Seal 2 | . . . . . . . . . . . . . . . . . . . . . . . . . . . . . . . . . 2 Fabricator Hacks 8 | . . . . . . . . . . . . . . . . 4 . . . . . . 3 . . . . 1 . . . . . Network Status 2 | . . . . . . . . . . . . . . . . 1 . . . . . . . . . . . 1 . . . . . Load Schematic 4 | . . . . . . . . . . . . . . . . 2 . . . . . . 2 . . . . . . . . . . Build 2 | . . . . . . . . . . . . . . . . 1 . . . . . . 1 . . . . . . . . . . Repair Station Hacks 20 | . . . . . 4 6 . . . . . . . . . . . . 10 . . . . . . . . . . . . . . Scan Component 10 | . . . . . 2 3 . . . . . . . . . . . . 5 . . . . . . . . . . . . . . Repair 10 | . . . . . 2 3 . . . . . . . . . . . . 5 . . . . . . . . . . . . . . Recycling Unit Hacks 4 | . 1 . . . . . . . . . . . . . . 1 . 1 . . . . 1 . . . . . . . . . . Report Inventory 3 | . 1 . . . . . . . . . . . . . . 1 . 1 . . . . . . . . . . . . . . . Retrieve Components 1 | . . . . . . . . . . . . . . . . . . . . . . . 1 . . . . . . . . . . Scanalyzer 8 | . . . . . 6 . . . . . . . . . . 2 . . . . . . . . . . . . . . . . . Insert Component 4 | . . . . . 3 . . . . . . . . . . 1 . . . . . . . . . . . . . . . . . Analyze 4 | . . . . . 3 . . . . . . . . . . 1 . . . . . . . . . . . . . . . . . Garrison Access Hacks 5 | . . . . . . 1 . . . . . . . . . . . 1 . . . . . . . . . 2 . . 1 . . Seal Access 5 | . . . . . . 1 . . . . . . . . . . . 1 . . . . . . . . . 2 . . 1 . . Unauthorized Hacks 28 | . . . . . . 2 . . . . 3 . . . . 3 . 1 2 . . . 8 . . . . 2 3 . . 4 . Terminals 23 | . . . . . . 2 . . . . 2 . . . . 2 . 1 2 . . . 6 . . . . 1 3 . . 4 . Track 1 | . . . . . . . . . . . . . . . . . . . . . . . 1 . . . . . . . . . . Assimilate 4 | . . . . . . . . . . . . . . . . . . . . . . . 1 . . . . . 1 . . 2 . Botnet 14 | . . . . . . 2 . . . . 1 . . . . 2 . . 1 . . . 3 . . . . 1 2 . . 2 . Operators 4 | . . . . . . . . . . . 1 . . . . . . 1 1 . . . 1 . . . . . . . . . . Fabricators 4 | . . . . . . . . . . . . . . . . 1 . . . . . . 2 . . . . 1 . . . . . Prioritize 2 | . . . . . . . . . . . . . . . . 1 . . . . . . 1 . . . . . . . . . . Liberate 1 | . . . . . . . . . . . . . . . . . . . . . . . . . . . . 1 . . . . . Recompile 1 | . . . . . . . . . . . . . . . . . . . . . . . 1 . . . . . . . . . . Repair Stations 1 | . . . . . . . . . . . 1 . . . . . . . . . . . . . . . . . . . . . . Patch 1 | . . . . . . . . . . . 1 . . . . . . . . . . . . . . . . . . . . . . Recycling Units . | . . . . . . . . . . . . . . . . . . . . . . . . . . . . . . . . . . Scanalyzers . | . . . . . . . . . . . . . . . . . . . . . . . . . . . . . . . . . . Garrison Access . | . . . . . . . . . . . . . . . . . . . . . . . . . . . . . . . . . . Data Cores Recovered 4 | . . . . . . 1 . . . . . . . . . . . 1 . . . . 1 . . . . . 1 . . . . Used 1 | . . . . . . 1 . . . . . . . . . . . . . . . . . . . . . . . . . . . Hacking Detections 68 | . 6 . . . 9 13 . . . . 3 . . . . 5 . 1 2 1 . 3 5 . . . . 8 3 . 2 4 3 Full Trace Events 4 | . 1 . . . . . . . . . 1 . . . . 1 . . . . . . 1 . . . . . . . . . . Feedback Events . | . . . . . . . . . . . . . . . . . . . . . . . . . . . . . . . . . . Feedback Blocked . | . . . . . . . . . . . . . . . . . . . . . . . . . . . . . . . . . . Robot Schematics Acquired 6 | . . . . . . . . . . . . . . 6 . . . . . . . . . . . . . . . . . . . Robots Built . | . . . . . . . . . . . . . . . . . . . . . . . . . . . . . . . . . . Authchips . | . . . . . . . . . . . . . . . . . . . . . . . . . . . . . . . . . . Time . | . . . . . . . . . . . . . . . . . . . . . . . . . . . . . . . . . . Total Robot Build Rating . | . . . . . . . . . . . . . . . . . . . . . . . . . . . . . . . . . . Part Schematics Acquired 21 | . . . . . 2 2 . . . . 1 . . 12 . 1 . . . . . . 2 . . . . . 1 . . . . Parts Built 2 | . . . . . . . . . . . . . . . . 1 . . . . . . 1 . . . . . . . . . . Authchips . | . . . . . . . . . . . . . . . . . . . . . . . . . . . . . . . . . . Time 134 | . . . . . . . . . . . . . . . . 67 . . . . . . 67 . . . . . . . . . . Total Part Build Rating 8 | . . . . . . . . . . . . . . . . 4 . . . . . . 4 . . . . . . . . . . Parts Repaired 9 | . . . . . 2 3 . . . . . . . . . . . . 4 . . . . . . . . . . . . . . Time 392 | . . . . . 88 84 . . . . . . . . . . . . 220 . . . . . . . . . . . . . . Parts Recycled . | . . . . . . . . . . . . . . . . . . . . . . . . . . . . . . . . . . Recycled Matter . | . . . . . . . . . . . . . . . . . . . . . . . . . . . . . . . . . . Retrieved Matter . | . . . . . . . . . . . . . . . . . . . . . . . . . . . . . . . . . . Retrieved Components 1 | . . . . . . . . . . . . . . . . . . . . . . . 1 . . . . . . . . . . Parts Scanalyzed 4 | . . . . . 3 . . . . . . . . . . 1 . . . . . . . . . . . . . . . . . Part Schematics Acquired 3 | . . . . . 2 . . . . . . . . . . 1 . . . . . . . . . . . . . . . . . Parts Damaged . | . . . . . . . . . . . . . . . . . . . . . . . . . . . . . . . . . . Bothacking | -11 -10 -10 -10 -9 -8 -7 -7 -7 -7 -6 -6 -6 -6 -6 -5 -5 -5 -5 -5 -5 -5 -5 -4 -4 -4 -4 -3 -3 -3 -3 -2 -1 -1 ------------ Run | Yrd Mat Min Exi Min Mat Fac Low Low Zio Pro Fac Low Low Dat Pro Fac Was Fac Ext Cet Arc Hub Fac Upp Upp War Pro Res Arm Lab Res Acc Com Used RIF Installer . | . . . . . . . . . . . . . . . . . . . . . . . . . . . . . . . . . . Robots Hacked . | . . . . . . . . . . . . . . . . . . . . . . . . . . . . . . . . . . Non-combat . | . . . . . . . . . . . . . . . . . . . . . . . . . . . . . . . . . . Combat . | . . . . . . . . . . . . . . . . . . . . . . . . . . . . . . . . . . Robot Hacks Applied . | . . . . . . . . . . . . . . . . . . . . . . . . . . . . . . . . . . Relay Couplers Released 1 | . . . . . . . . . . . . . . . . . . . . . . . . . . . . . . . 1 . . Machine Destruction 1 | . . . . . . . . . . . . . . . . . . . . . . . . . . . . . . . 1 . . Fabnet Peak Effective % . | . . . . . . . . . . . . . . . . . . . . . . . . . . . . . . . . . . Robots Rewired 9 | . . . . . . . . 2 . . . . 1 . . . . . 6 . . . . . . . . . . . . . . Allies Hacked 2 | . . . . . . . . . . . . . . . . . . . . . . . . . . . . . . . . 2 . Hacks Repelled . | . . . . . . . . . . . . . . . . . . . . . . . . . . . . . . . . . . Allies | -11 -10 -10 -10 -9 -8 -7 -7 -7 -7 -6 -6 -6 -6 -6 -5 -5 -5 -5 -5 -5 -5 -5 -4 -4 -4 -4 -3 -3 -3 -3 -2 -1 -1 -------- Run | Yrd Mat Min Exi Min Mat Fac Low Low Zio Pro Fac Low Low Dat Pro Fac Was Fac Ext Cet Arc Hub Fac Upp Upp War Pro Res Arm Lab Res Acc Com Total Allies 35 | . . . . 3 . . . 2 . . . . 1 . 1 . . . 20 5 . . 1 . . . . . . . . 2 . Largest Group 14 | . . . . 3 3 . . 2 2 2 1 . 1 1 1 . . . 14 8 7 7 1 . . . . . . . . 2 . Highest-Rated Group 681 | . . . . 40 40 . . 32 32 32 16 . 32 32 96 . . . 558 681 522 522 10 . . . . . . . . 90 . Highest-Rated Ally 159 | . . . . 16 16 . . 16 16 16 16 . 32 32 96 . . . 159 159 96 96 10 . . . . . . . . 45 . Total Orders 1 | . . . . . . . . . . . . . . . . . . . . . . 1 . . . . . . . . . . . STAY 1 | . . . . . . . . . . . . . . . . . . . . . . 1 . . . . . . . . . . . Ally Attacks 343 | . . . . 14 8 . . . . 14 3 . 1 . 18 . . . 199 31 17 38 . . . . . . . . . . . Total Damage 6159 | . . . . 130 47 . . . . 150 53 . 29 . 548 . . . 2619 626 634 1323 . . . . . . . . . . . Kills 52 | . . . . 4 . . . . . 2 1 . 1 . 2 . . . 29 4 3 6 . . . . . . . . . . . Allies Corrupted 1 | . . . . . . . . . . . . . . . . . . . . . . 1 . . . . . . . . . . . Allies Melted 3 | . . . . . . . . . . . . . . . 1 . . . 1 . . . . . . . . . . . . . 1 Intel | -11 -10 -10 -10 -9 -8 -7 -7 -7 -7 -6 -6 -6 -6 -6 -5 -5 -5 -5 -5 -5 -5 -5 -4 -4 -4 -4 -3 -3 -3 -3 -2 -1 -1 ------- Run | Yrd Mat Min Exi Min Mat Fac Low Low Zio Pro Fac Low Low Dat Pro Fac Was Fac Ext Cet Arc Hub Fac Upp Upp War Pro Res Arm Lab Res Acc Com Robot Analysis Total 2 | . 2 . . . . . . . . . . . . . . . . . . . . . . . . . . . . . . . . Derelict Logs Recovered 17 | . . 3 . 1 . . . 2 1 1 . 3 2 . 2 . . . . . . . . 1 1 . . . . . . . . Drone Launches . | . . . . . . . . . . . . . . . . . . . . . . . . . . . . . . . . . . Drone Recoveries . | . . . . . . . . . . . . . . . . . . . . . . . . . . . . . . . . . . Exploration | -11 -10 -10 -10 -9 -8 -7 -7 -7 -7 -6 -6 -6 -6 -6 -5 -5 -5 -5 -5 -5 -5 -5 -4 -4 -4 -4 -3 -3 -3 -3 -2 -1 -1 ------------- Run | Yrd Mat Min Exi Min Mat Fac Low Low Zio Pro Fac Low Low Dat Pro Fac Was Fac Ext Cet Arc Hub Fac Upp Upp War Pro Res Arm Lab Res Acc Com Turns Passed 23826 | 218 1160 1297 431 984 1753 2629 812 576 1284 633 1791 789 986 158 390 741 71 150 1184 285 343 196 1314 114 138 363 184 386 558 323 485 493 607 Spaces Moved 20075 | 99 537 662 225 473 619 1168 379 272 795 365 845 467 391 93 388 892 175 469 1247 271 240 459 1671 316 448 591 485 617 1044 162 1261 915 1034 Core 79 | 3 . . . . . . . . . . . . . . . . . . . . . . 2 . . . . . . . . . 74 Treads 5937 | 96 413 . . . 606 1168 379 272 795 365 845 467 391 93 47 . . . . . . . . . . . . . . . . . . Legs 1537 | . 124 662 225 473 13 . . . . . . . . . 40 . . . . . . . . . . . . . . . . . . Wheels 31 | . . . . . . . . . . . . . . . . . . . . . . . 31 . . . . . . . . . . Hover . | . . . . . . . . . . . . . . . . . . . . . . . . . . . . . . . . . . Flight 12491 | . . . . . . . . . . . . . . . 301 892 175 469 1247 271 240 459 1638 316 448 591 485 617 1044 162 1261 915 960 Fastest Speed 14 | 50 160 190 190 190 120 160 160 160 160 160 160 160 160 160 27 14 21 21 21 24 24 24 26 26 26 26 19 26 27 33 26 20 17 Average Speed 83 | 156 167 190 190 190 199 172 160 161 160 162 160 160 236 167 77 24 21 21 24 24 25 27 40 32 26 26 25 26 31 33 29 20 23 Slowest Speed 400 | 160 240 190 190 190 400 240 160 240 160 240 160 160 240 240 330 27 21 21 96 25 98 99 165 33 33 26 26 27 39 33 117 23 108 Overloaded Moves 220 | . . . . . . . . . . . . . . . . 4 . . . . . . 187 17 . . 12 . . . . . . Propulsion Burnouts . | . . . . . . . . . . . . . . . . . . . . . . . . . . . . . . . . . . Robots Hopped 27 | . . . . . . . . . . . . . . . . 4 . 1 2 . . 7 4 . . . . . 3 . . 5 1 Cave-ins Triggered 1 | . . . . . . . . . . . . . . . 1 . . . . . . . . . . . . . . . . . . Teleports 1 | . . . . . . . . . . . . . . . . . . . . . . . . . . . . . . 1 . . . Exploration Rate (%) 57 | 6 92 97 61 88 52 35 62 47 80 63 23 70 64 69 49 26 93 10 87 84 98 37 44 66 62 82 59 19 61 84 31 20 33 Regions Visited 33 Branch Regions 22 Pre-discovered Areas 5 | . . 1 1 . . . . . . . . 1 1 1 . . . . . . . . . . . . . . . . . . . Known Exits Taken 10 | . . . . . 1 1 . . . 1 1 . . . 1 . . 1 . . . 1 1 . . . . 1 . 1 . . . Unknown Exits Taken 21 | 1 1 1 1 1 . . 1 1 1 . . 1 1 1 . . . . 1 1 1 . . 1 1 1 1 . 1 . 1 1 . Scrap Searched 29 | . . 2 . 2 . . 4 3 4 2 . 3 2 . 4 . . . . . . . . 1 1 . 1 . . . . . . Spaces Dug 201 | . 8 . . . . 5 3 1 . . 4 . . . 9 18 . 6 7 . 15 4 36 1 2 . 4 10 30 . 6 22 10 Terrain Destroyed 1249 | . 43 . . . 74 5 22 43 . 59 67 61 25 . 60 18 . 6 111 3 33 317 65 1 22 34 17 10 30 . 6 22 95 Melee 108 | . . . . . . 5 . . . . . . . . . 17 . 5 . . . 4 8 1 2 . 4 10 23 . 4 21 4 Projectile 74 | . 2 . . . 2 . 3 3 . . 8 2 . . 4 1 . 1 1 3 . 3 17 . . . . . 7 . 2 1 14 AOE 1067 | . 41 . . . 72 . 19 40 . 59 59 59 25 . 56 . . . 110 . 33 310 40 . 20 34 13 . . . . . 77 Terrain Rammed . | . . . . . . . . . . . . . . . . . . . . . . . . . . . . . . . . . . Walls Destroyed . | . . . . . . . . . . . . . . . . . . . . . . . . . . . . . . . . . . Machines Disabled . | . . . . . . . . . . . . . . . . . . . . . . . . . . . . . . . . . . Actions | -11 -10 -10 -10 -9 -8 -7 -7 -7 -7 -6 -6 -6 -6 -6 -5 -5 -5 -5 -5 -5 -5 -5 -4 -4 -4 -4 -3 -3 -3 -3 -2 -1 -1 --------- Run | Yrd Mat Min Exi Min Mat Fac Low Low Zio Pro Fac Low Low Dat Pro Fac Was Fac Ext Cet Arc Hub Fac Upp Upp War Pro Res Arm Lab Res Acc Com Total 25907 | 128 690 702 228 540 987 1645 555 363 808 389 1161 486 426 96 450 1352 207 506 2064 459 502 510 2249 324 459 781 534 818 1207 425 1352 1165 1339 Wait 4244 | . 54 33 . 46 189 336 150 22 6 7 203 . 5 . 16 413 28 24 670 144 235 46 470 4 . 148 43 166 99 246 7 210 224 Move 19990 | 98 536 661 224 472 618 1167 378 271 794 364 844 466 390 92 387 884 174 466 1242 270 239 445 1662 315 447 590 484 616 1037 161 1260 904 1032 Hop 26 | . . . . . . . . . . . . . . . . 4 . 1 2 . . 6 4 . . . . . 3 . . 5 1 Pick Up 134 | 6 13 3 1 3 28 13 1 . 3 . 6 . 3 . 2 3 1 . 4 4 1 . 4 . 1 3 . 4 4 . 20 2 1 Fast Attach 160 | 7 . . . 1 12 11 2 . 2 1 5 . 1 2 5 5 . 2 19 4 5 2 22 2 3 8 . 6 6 8 15 2 2 Attach 77 | . 3 . . . 10 1 . 2 . 2 3 1 3 . 9 2 . . 4 2 2 . 11 . 1 . . 2 2 . 5 3 9 Detach 30 | . . . . . 6 1 . . . . . . . . . 1 . . 2 1 2 . 9 . . 1 . 1 . 2 3 . 1 Swap 177 | . 20 1 2 1 11 26 4 5 . 5 20 5 4 . 5 4 3 4 14 4 . 2 2 . 1 6 2 . 5 . 3 5 13 Drop 185 | . 2 3 1 5 21 23 3 . 3 1 12 1 . 2 9 4 1 2 15 5 4 1 10 2 2 9 . 7 5 5 19 . 8 Fire 540 | 17 60 1 . 9 87 61 17 25 . 9 66 13 19 . 16 1 . 1 24 12 3 3 18 . 2 16 1 1 17 . 4 3 34 Melee 227 | . . . . . 2 5 . . . . . . . . 1 31 . 6 19 13 11 5 19 1 2 . 4 15 29 3 16 31 14 Ram . | . . . . . . . . . . . . . . . . . . . . . . . . . . . . . . . . . . Kick 3 | . . . . 3 . . . . . . . . . . . . . . . . . . . . . . . . . . . . . Crush 8 | . 2 . . . 3 1 . . . . 2 . . . . . . . . . . . . . . . . . . . . . . Escape Stasis 33 | . . . . . . . . . . . . . . . . . . . 15 . . . 18 . . . . . . . . . . Rewire 73 | . . . . . . . . 38 . . . . 1 . . . . . 34 . . . . . . . . . . . . . . Trap . | . . . . . . . . . . . . . . . . . . . . . . . . . . . . . . . . . . Miscellaneous . | . . . . . . . . . . . . . . . . . . . . . . . . . . . . . . . . . . Route ------- -11/Scrapyard -10/Materials (discovered 4 exits: [*Mat x3] / [*Min]) -10/Mines (discovered 3 exits: [*Mat x2] / *Exi) -10/Exiles -9/Mines (discovered 2 exits: *Mat x2) -8/Materials (discovered 3 exits: *Fac x2 / Sto) -7/Factory (discovered 4 exits: *Fac x2 / *Low x2) -7/Lower Caves -7/Lower Caves -7/Zion -6/Proximity Caves -6/Factory (discovered 2 exits: *Low x2) -6/Lower Caves -6/Lower Caves (discovered 2 exits: Fac / *Dat) -6/Data Miner -5/Proximity Caves -5/Factory (discovered 6 exits: Fac x2 / *Upp x2 / Ext x2) -5/Waste -5/Factory -5/Extension (discovered 2 exits: *Fac / *Cet) -5/Cetus -5/Archives (discovered 3 exits: *Fac / *Hub x2) -5/Hub_04(d) -4/Factory (discovered 4 exits: *Res x2 / *Upp x2) -4/Upper Caves -4/Upper Caves (discovered 2 exits: *Res / *War) -4/Warlord -3/Proximity Caves -3/Research (discovered 5 exits: Res x3 / *Arm / [*Qua]) -3/Armory -3/Lab -2/Research (discovered 3 exits: *Acc / *Tes x2) -1/Access -1/Command History --------- Turn | Location | Event 2 | -11/Scrapyard | Met Revision 17 8 | -11/Scrapyard | Discovered new exit (range 15) 219 | -11/Scrapyard | Entered Materials 310 | -10/Materials | Build established: Mutant 421 | -10/Materials | Discovered new exit (range 12) 790 | -10/Materials | Discovered new exit (range 7) 1031 | -10/Materials | Discovered new exit (range 5) 1298 | -10/Materials | Discovered new exit (range 8) 1379 | -10/Materials | Entered Mines 1402 | -10/Mines | Discovered new exit (range 9) 1600 | -10/Mines | Learned Materials emergency access door positions 1743 | -10/Mines | Found DCF Scrap (16 items) 1784 | -10/Mines | Discovered new exit (range 6) 2137 | -10/Mines | Learned 8 Materials zone layouts 2667 | -10/Mines | Deemed a non-threat by the Exiles lab entrance 2667 | -10/Mines | Discovered new exit (range 5) 2676 | -10/Mines | Entered Exiles 2724 | -10/Exiles | Met 8R-AWN 2754 | -10/Exiles | Met EX-HEX 2811 | -10/Exiles | Met EX-BIN 2834 | -10/Exiles | Aligned with FarCom system 2836 | -10/Exiles | Given EX-Vault access code 2887 | -10/Exiles | Opened EX-Vault 2903 | -10/Exiles | Found Latent Energy Streamer 2942 | -10/Exiles | Warned to stay clear of 0b10 Research branches 2966 | -10/Exiles | Exiles lab attacked by MAIN.C 3022 | -10/Exiles | Learned location of Zion (-7) 3083 | -10/Exiles | Discovered new exit (range 12) 3107 | -10/Exiles | Left Exiles lab with Latent Energy Streamer 3107 | -10/Exiles | Entered Mines 3170 | -9/Mines | Discovered new exit (range 13) 3242 | -9/Mines | Discovered new exit (range 9) 3749 | -9/Mines | Assisted by bots powering up and referring to "LRC-V3" 3753 | -9/Mines | Found DCF Scrap (12 items) 4091 | -9/Mines | Entered Materials 4091 | -8/Materials | Accompanied by 3 allies 4091 | -8/Materials | Evolved 4 slots: Propulsion x2, Utility x2 4092 | -8/Materials | Identified exit to Storage 4093 | -8/Materials | Identified exit to Factory 4347 | -8/Materials | Lost 3 allies 4803 | -8/Materials | Build established: Skirmisher 5432 | -8/Materials | Repaired Broken Imp. Treads 5534 | -8/Materials | Build established: Scavenger-Mutant 5820 | -8/Materials | Repaired Mak. Light Armor Plating 5834 | -8/Materials | Discovered exit to Factory (range 5) 5844 | -8/Materials | Entered Factory 5844 | -7/Factory | Evolved 2 slots: Propulsion x1, Utility x1 6599 | -7/Factory | Build established: Scavenger-Skirmisher 6814 | -7/Factory | Discovered new exit (range 16) 7032 | -7/Factory | Identified exit to Factory 7224 | -7/Factory | Build established: Scavenger-Mutant 7277 | -7/Factory | Discovered exit to Factory (range 15) 7972 | -7/Factory | Build established: Skirmisher 8226 | -7/Factory | Identified exit to Lower Caves 8342 | -7/Factory | Repaired Lgt. Treads 8375 | -7/Factory | Repaired Imp. Treads 8403 | -7/Factory | Repaired Lgt. Treads 8473 | -7/Factory | Entered Lower Caves 8546 | -7/Lower Caves | Encountered a Warlord checkpoint 8756 | -7/Lower Caves | Build established: Mutant 8891 | -7/Lower Caves | Attacked by a delusional Derelict stockpiling parts 9267 | -7/Lower Caves | Discovered new exit (range 10) 9285 | -7/Lower Caves | Entered another Lower Caves area 9474 | -7/Lower Caves | Attracted the attention of an 0b10 outpost 9573 | -7/Lower Caves | Destroyed 11 combat bots 9700 | -7/Lower Caves | Learned Factory stockpile data 9796 | -7/Lower Caves | Learned Factory terminal intel 9802 | -7/Lower Caves | Discovered new exit (range 15) 9861 | -7/Lower Caves | Entered Zion 9861 | -7/Zion | Accompanied by 2 allies 10034 | -7/Zion | Discovered new exit (range 13) 10157 | -7/Zion | System corruption cleaned by Quarantine Array 10322 | -7/Zion | Received a visual enhancement algorithm 10704 | -7/Zion | Given the Hacking Drone Bay 10791 | -7/Zion | Learned Factory emergency access door positions 11145 | -7/Zion | Entered Proximity Caves 11145 | -6/Proximity Caves | Accompanied by 2 allies 11620 | -6/Proximity Caves | Learned location of 1 exit from Factory 11772 | -6/Proximity Caves | Discovered exit to Factory (range 5) 11778 | -6/Proximity Caves | Entered Factory 11778 | -6/Factory | Accompanied by 1 ally 11778 | -6/Factory | Evolved 2 slots: Propulsion x1, Utility x1 11779 | -6/Factory | Identified exit to Lower Caves 11783 | -6/Factory | Loaded intel: 26 terminal locations 11950 | -6/Factory | Build established: Scavenger-Mutant 13046 | -6/Factory | Garrison activated, responded to threat 13076 | -6/Factory | Destroyed 7 combat bots 13149 | -6/Factory | Cargo convoy interrupted 13569 | -6/Factory | Entered Lower Caves 13933 | -6/Lower Caves | Encountered a Warlord checkpoint 13983 | -6/Lower Caves | Spotted B-75 Beast 14129 | -6/Lower Caves | Attracted the attention of an 0b10 checkpoint 14143 | -6/Lower Caves | Core integrity fell below 50% 14208 | -6/Lower Caves | Learned Factory stockpile data 14346 | -6/Lower Caves | Discovered new exit (range 8) 14350 | -6/Lower Caves | Learned Factory security intel 14358 | -6/Lower Caves | Entered another Lower Caves area 14375 | -6/Lower Caves | Attracted the attention of an 0b10 outpost 14452 | -6/Lower Caves | Lost 4 parts (1p1n1u1w) 14461 | -6/Lower Caves | Destroyed 9 combat bots 14689 | -6/Lower Caves | Build established: Hacker-Mutant 14994 | -6/Lower Caves | Attracted the attention of an 0b10 checkpoint 15103 | -6/Lower Caves | Identified exit to Factory 15335 | -6/Lower Caves | Discovered new exit (range 5) 15344 | -6/Lower Caves | Entered Data Miner 15344 | -6/Data Miner | Accompanied by 1 ally 15345 | -6/Data Miner | Discovered new exit (range 6) 15376 | -6/Data Miner | Met Data Miner 15405 | -6/Data Miner | Learned location of Section 7 (-2) 15405 | -6/Data Miner | Acquired the access code to Warlord's prototype stash 15432 | -6/Data Miner | Received God Mode back door access code from Data Miner 15502 | -6/Data Miner | Entered Proximity Caves 15502 | -5/Proximity Caves | Accompanied by 1 ally 15647 | -5/Proximity Caves | Escorted by Enhanced Grunt 15678 | -5/Proximity Caves | Lost 5 parts (3n1u1w) 15768 | -5/Proximity Caves | Crushed by falling debris 15768 | -5/Proximity Caves | Core integrity fell below 20% 15768 | -5/Proximity Caves | System corruption reached 10% 15799 | -5/Proximity Caves | Lost 4 parts (1n2u1w) 15886 | -5/Proximity Caves | Learned 4 Factory zone layouts 15892 | -5/Proximity Caves | Entered Factory 15892 | -5/Factory | Evolved 2 slots: Power x1, Utility x1 15893 | -5/Factory | Identified exit to Factory 16069 | -5/Factory | Fabricated Cld. VTOL Module? 16074 | -5/Factory | Build established: Hacker-Sprinter 16394 | -5/Factory | Discovered new exit (range 9) 16401 | -5/Factory | Identified exit to Upper Caves 16401 | -5/Factory | Identified exit to Extension 16633 | -5/Factory | Sucked down chute 16633 | -5/Factory | Entered Waste 16633 | -5/Waste | The area was eerily silent 16698 | -5/Waste | Discovered new exit (range 22) 16704 | -5/Waste | Entered Factory 16853 | -5/Factory | Discovered exit to Extension (range 6) 16854 | -5/Factory | Entered Extension 16861 | -5/Extension | Rescued a captive Derelict 16862 | -5/Extension | Rescued a captive Derelict 16881 | -5/Extension | Rescued a captive Derelict 16919 | -5/Extension | Rescued a captive Derelict 17006 | -5/Extension | Rescued a captive Derelict 17282 | -5/Extension | Spotted B-75 Beast 17342 | -5/Extension | Allies destroyed B-75 Beast 17348 | -5/Extension | Spotted B-75 Beast 17409 | -5/Extension | Allies destroyed B-75 Beast 17494 | -5/Extension | Rescued A7 17504 | -5/Extension | Rescued a captive Derelict 17505 | -5/Extension | Rescued a captive Derelict 17519 | -5/Extension | Rescued a captive Derelict 17526 | -5/Extension | Rescued a captive Derelict 17549 | -5/Extension | Rescued a captive Derelict 17563 | -5/Extension | Rescued a captive Derelict 17640 | -5/Extension | Rescued a captive Derelict 17641 | -5/Extension | Rescued a captive Derelict 17702 | -5/Extension | Repaired Imp. Reaction Control System 17747 | -5/Extension | Repaired Chainsword 17799 | -5/Extension | Repaired Nuclear Pulse Thruster 17838 | -5/Extension | Repaired Cesium-ion Thruster 17924 | -5/Extension | Discovered exit to Factory (range 10) 17925 | -5/Extension | Discovered new exit (range 6) 17979 | -5/Extension | Disrupted transfer network 17983 | -5/Extension | System corruption reached 10% 17989 | -5/Extension | Disrupted transfer network 18004 | -5/Extension | Destroyed 7 combat bots 18031 | -5/Extension | Lost 5 allies 18038 | -5/Extension | Entered Cetus 18038 | -5/Cetus | Accompanied by 7 allies (A7) 18042 | -5/Cetus | Spotted Cetus Guard 18043 | -5/Cetus | Acquired a Cetus Manufacturing Module code from A7 18043 | -5/Cetus | Spotted Cetus Guard 18043 | -5/Cetus | Spotted Cetus Guard 18043 | -5/Cetus | Spotted Cetus Guard 18060 | -5/Cetus | Allies destroyed Cetus Guard 18069 | -5/Cetus | Allies destroyed Cetus Guard 18079 | -5/Cetus | Destroyed Cetus Guard 18084 | -5/Cetus | Allies destroyed Cetus Guard 18098 | -5/Cetus | Started Cetus Manufacturing Module 18102 | -5/Cetus | Lost 4 allies 18110 | -5/Cetus | Lost 3 parts (1p1n1u) 18123 | -5/Cetus | Manufactured an Enhanced Grunt 18148 | -5/Cetus | Manufactured an Enhanced Grunt 18173 | -5/Cetus | Manufactured an Enhanced Grunt 18198 | -5/Cetus | Manufactured an Enhanced Grunt 18223 | -5/Cetus | Manufactured an Enhanced Grunt 18261 | -5/Cetus | Discovered new exit (range 22) 18307 | -5/Cetus | Murdered A7 18308 | -5/Cetus | Extracted ID and sensor layout for unrecognized location from A7's data core 18323 | -5/Cetus | Entered Archives 18323 | -5/Archives | Accompanied by 7 allies 18397 | -5/Archives | Discovered new exit (range 20) 18403 | -5/Archives | Discovered new exit (range 22) 18414 | -5/Archives | Discovered exit to Factory (range 22) 18520 | -5/Archives | Build established: Commander-Sprinter 18666 | -5/Archives | Entered Hub_04(d) 18666 | -5/Hub_04(d) | Accompanied by 7 allies 18726 | -5/Hub_04(d) | Discovered exit to Factory (range 19) 18830 | -5/Hub_04(d) | Network Hub disabled 18830 | -5/Hub_04(d) | Garrison activated, responded to threat 18830 | -5/Hub_04(d) | Spotted B-75 Beast 18833 | -5/Hub_04(d) | Spotted Lightning 18834 | -5/Hub_04(d) | Spotted Lightning 18836 | -5/Hub_04(d) | Spotted Lightning 18849 | -5/Hub_04(d) | Network Hub disabled 18858 | -5/Hub_04(d) | Spotted Lightning 18860 | -5/Hub_04(d) | Spotted Lightning 18860 | -5/Hub_04(d) | Spotted Lightning 18862 | -5/Hub_04(d) | Entered Factory 18862 | -4/Factory | Evolved 2 slots: Propulsion x1, Utility x1 18873 | -4/Factory | Identified exit to Upper Caves 18884 | -4/Factory | Lost 5 allies 18892 | -4/Factory | Lost 9 parts (1p3n4u1w) 19001 | -4/Factory | Spotted B-86 Titan 19740 | -4/Factory | Build established: Hacker-Mutant 19877 | -4/Factory | Discovered new exit (range 10) 19926 | -4/Factory | Discovered new exit (range 8) 19978 | -4/Factory | Fabricated Cld. VTOL Module? 20150 | -4/Factory | Search patrols dispatched 20176 | -4/Factory | Entered Upper Caves 20211 | -4/Upper Caves | Encountered a Warlord checkpoint 20277 | -4/Upper Caves | Ambushed by research squad 20280 | -4/Upper Caves | Spotted B-86 Titan 20287 | -4/Upper Caves | Discovered new exit (range 12) 20290 | -4/Upper Caves | Entered another Upper Caves area 20301 | -4/Upper Caves | Found DCF Scrap (14 items) 20323 | -4/Upper Caves | Discovered new exit (range 6) 20387 | -4/Upper Caves | Build established: Hacker-Sprinter 20396 | -4/Upper Caves | Discovered new exit (range 12) 20419 | -4/Upper Caves | Spotted B-86 Titan 20428 | -4/Upper Caves | Entered Warlord 20493 | -4/Warlord | Visited the Vortex Lab 20503 | -4/Warlord | Warlord's base attacked by MAIN.C 20510 | -4/Warlord | Met Warlord 20512 | -4/Warlord | Opened Warlord's prototype stash 20514 | -4/Warlord | Found Prototype Hackware 20514 | -4/Warlord | Identified System Mapper 20519 | -4/Warlord | Found Prototype Device 20519 | -4/Warlord | Identified Thermal Barrier 20524 | -4/Warlord | Found Prototype Device 20524 | -4/Warlord | Identified Exp. Phase Shifter 20718 | -4/Warlord | Warlord forces counterattacked 20788 | -4/Warlord | Discovered new exit (range 12) 20791 | -4/Warlord | Entered Proximity Caves 20806 | -3/Proximity Caves | Lost 4 allies 20885 | -3/Proximity Caves | Spotter reported a threat 20885 | -3/Proximity Caves | Spotter reported a threat 20923 | -3/Proximity Caves | Spotted B-86 Titan 20938 | -3/Proximity Caves | Spotter reported a threat 20971 | -3/Proximity Caves | Discovered new exit (range 13) 20975 | -3/Proximity Caves | Entered Research 20975 | -3/Research | Evolved 2 slots: Utility x2 20976 | -3/Research | Identified exit to Armory 21004 | -3/Research | Build established: Derelict-Sprinter 21071 | -3/Research | Found Fusion Bomb Launcher 21081 | -3/Research | Found Unknown Launcher 21081 | -3/Research | Identified Gamma Bomb Array 21134 | -3/Research | Discovered new exit (range 5) 21137 | -3/Research | Spotted B-86 Titan 21196 | -3/Research | Identified exit to Research 21225 | -3/Research | Search patrols dispatched 21361 | -3/Research | Build established: Hacker-Sprinter 21361 | -3/Research | Entered Armory 21362 | -3/Armory | Met VL-GR5, who suggested a friendly competition 21597 | -3/Armory | Lost the competition with VL-GR5 21918 | -3/Armory | Discovered new exit (range 3) 21919 | -3/Armory | Entered Lab 21919 | -3/Lab | Discovered exit to Research (range 9) 21923 | -3/Lab | Hidden lab's door opened automatically 21923 | -3/Lab | Sensor layout match revealed 21924 | -3/Lab | Gained access to the hidden lab's interior 22112 | -3/Lab | Found Alien Artifact 22112 | -3/Lab | Identified Transdimensional Reconstructor 22112 | -3/Lab | Warped through subspace 22202 | -3/Lab | Found Alien Artifact 22202 | -3/Lab | Identified Integrated Dissipator 22202 | -3/Lab | Installed Integrated Dissipator, increased core heat dissipation (+20) 22204 | -3/Lab | Found Alien Artifact 22204 | -3/Lab | Identified Core Regenerator 22204 | -3/Lab | Used Core Regenerator, restored core integrity (+121) 22215 | -3/Lab | Found Prototype Hackware 22215 | -3/Lab | Identified Quantum Router 22218 | -3/Lab | Found Prototype Device 22218 | -3/Lab | Identified AEGIS Remote Shield 22223 | -3/Lab | Found Prototype Energy Gun 22223 | -3/Lab | Identified Tachyon Dispersion Ray 22242 | -3/Lab | Entered Research 22242 | -2/Research | Warlord forces began assault on 0b10 22242 | -2/Research | Evolved 2 slots: Propulsion x1, Utility x1 22245 | -2/Research | Identified exit to Testing 22352 | -2/Research | Research machine network offline 22393 | -2/Research | Met up with Warlord 22404 | -2/Research | Discovered new exit (range 20) 22427 | -2/Research | Found Prototype Device 22427 | -2/Research | Identified Exp. Transmission Jammer 22613 | -2/Research | Found Prototype Device 22628 | -2/Research | Spotted Striker 22727 | -2/Research | Entered Access 22727 | -1/Access | Evolved 2 slots: Propulsion x1, Utility x1 22751 | -1/Access | Lost 3 allies 23019 | -1/Access | Build established: Wizard-Sprinter 23218 | -1/Access | Discovered new exit (range 8) 23220 | -1/Access | Entered Command 23239 | -1/Command | Phase Generator disabled 23259 | -1/Command | Disengaged cave seal 23260 | -1/Command | Welcomed Warlord to Command 23278 | -1/Command | Disengaged cave seal 23418 | -1/Command | Lost 7 allies 23470 | -1/Command | First assault squad dispatched 23501 | -1/Command | Lost 4 allies 23526 | -1/Command | Identified Exp. Thermal Shield 23571 | -1/Command | Lost 6 allies 23674 | -1/Command | Spotted M Guard 23674 | -1/Command | Spotted M Guard 23674 | -1/Command | Spotted Combat Programmer 23674 | -1/Command | Spotted Combat Programmer 23682 | -1/Command | Warlord commented on Warlord statues 23694 | -1/Command | Warlord destroyed during the assault 23695 | -1/Command | Combat Programmer assimilated allied KF-VQP(g) 23715 | -1/Command | Combat Programmer assimilated allied X0-SC0(l) 23716 | -1/Command | Combat Programmer assimilated allied Y2-0KW(i) 23730 | -1/Command | Combat Programmer assimilated allied QS-R2R(i) 23731 | -1/Command | Combat Programmer assimilated allied MA-B2B(l) 23760 | -1/Command | Spotted B-99 Colossus 23764 | -1/Command | Spotted B-99 Colossus 23781 | -1/Command | Lost 15 allies 23781 | -1/Command | System corruption reached 10% 23782 | -1/Command | Core integrity fell below 50% 23809 | -1/Command | Core integrity fell below 20% 23827 | -1/Command | Destroyed by Combat Programmer with EMDS Last Messages --------------- 23784_ K-01 Serf collects debris. 23784_ VY-N7B(s) reactivates. 23787_ Penetrated by EMDS Slug. 23787_ Impulse Thruster Array destroyed. 23789_ Exp. Q-thruster destroyed. 23791_ Ionic Axe destroyed. 23791_ HP-1RR(l) destroyed. 23792_ The unstable cave ceiling collapses. 23792_ EMDS Slug penetrates Wall. 23793_ The unstable cave ceiling collapses. 23793_ K-01 Serf collects debris. 23798_ The unstable cave ceiling collapses. 23798_ K-01 Serf destroyed. 23800_ The unstable cave ceiling collapses. 23801_ Combat Programmer crushed by falling debris. 23807_ Imp. System Shield destroyed. 23814_ Imp. Hacking Suite destroyed. 23817_ System corrupted: Matter fused (-10). 23817_ Imp. Hacking Suite destroyed. 23823_ Penetrated by EMDS Slug. Map ----- +----------------------------------------------------+ | ????????????????????????????# # ####??? #?? | | ????????????????????????????# # #?????##?? | | ????????????????????????????# # ##????????? | | ????????????????????????????# # #?????????? | | ????????????????????????????# # #?????????? | | ????????????????????????????# # #?????????? | | ????????????????????????????# # #+#?????????? | | ?????????????????????????????? # # ?????????? | | ??????????????????????######???? # # ?????????? | | ??????????????????????# #######+# # ????????? | | ??????????????????????# [ s # ????????? | | ??????????????????????# + ???????? | | ??????????????????????# Y ########### !???????? | | ??????????????????????##pp##?#######Y# ??????? | | ???????????????????????# # # ??????? | | ???????????????????????# + = # ?????? | | ???????????????????????# # "" #######?????? | | ???????????????????????# #??""" #???????????? | | ???????????????????????# #???? #???????????? | | ???????????????????????# #?????? [[ #???????????? | | ???????????????????w???# #????????[ #???????????? | | ???????????????????????# #??????????#???????????? | | ??????### ######## #### #??????????????????????? | | ???? #??????????????????????? | | ???? #??????????????????????? | | ???? @#??????????????????????? | | ???? #??????????????????????? | | ????? ### ######## #### #??????????????????????? | | ?????????????????# ???# ??????????????????????? | | ?????????????????# w???# ??????????????????????? | | ?????????????????#?????# ??????????????????????? | | ???????????????????????# ??????????????????????? | | ???????????????????????# ?????????????????????? | | ???????????????????????# ?????????????????????? | | ???????????????????????# ?????????????????????? | | ???????????????????????# ?????????????????????? | | ???????????????????????# ????????????????????? | | ??????????????????????? ????????????????????? | | ??????????????????????? ""????????????????????? | | ??????????????????????? ""????????????????????? | | ??????????????????????? ###???????????????????? | | ???????????????????????#####?????????????????????? | | ?????????????????????????????????????????????????? | | ?????????????????????????????????????????????????? | | ?????????????????????????????????????????????????? | | ?????????????????????????????????????????????????? | | ?????????????????????????????????????????????????? | | ?????????????????????????????????????????????????? | | ?????????????????????????????????????????????????? | | ?????????????????????????????????????????????????? | +----------------------------------------------------+ Best States ------------- Heat Dissipation 110 Energy Generation 41 Energy Capacity 360 Matter Stores 300 Matter Capacity 300 Sight Range 22 Terrain Scan Range 16 Terrain Scan Density 210 ECM Strength 1 Jamming Range 22 Additional Mass Support 9 Corruption Block 15 Armor Coverage 375 Resistance: TH 50 Propulsion Shielding 66 Phase Shifting 20 Evasion (%) 96 Targeting Accuracy 6 Melee Accuracy 5 Target Analysis 12 Recoil Reduction 6 Particle Charging 20 Offensive Hacking 44 Defensive Hacking 37 Authchip Count 1 Item Schematics ----------------- Adv. Beam Cannon | -8/Materials | Scanalyzed Adv. EMP Blaster | -8/Materials | Scanalyzed Adv. Hacking Suite | -7/Factory | Hacked Nuclear Pulse Thruster | -7/Factory | Hacked Cld. VTOL Module | -6/Factory | Hacked Combat Drone Bay | -6/Data Miner | Free Lgt. Regenerative Plating | -6/Data Miner | Free Enh. Flexi-carbon Leg | -6/Data Miner | Free Tiamat Missile Launcher | -6/Data Miner | Free Exp. Heat Sink | -6/Data Miner | Free Adv. Medium Treads | -6/Data Miner | Free Quantum Capacitor | -6/Data Miner | Free Hvy. Gauss Cannon | -6/Data Miner | Free Imp. Force Booster | -6/Data Miner | Free Adv. Weapon Cycler | -6/Data Miner | Free Centrium Wheel | -6/Data Miner | Free Enh. Force Lance | -6/Data Miner | Free Cld. Cesium-ion Thruster | -5/Factory | Scanalyzed Force Lance | -4/Factory | Hacked Enh. Quantum Rifle | -4/Factory | Hacked Mic. Antimatter Reactor | -3/Armory | Hacked Robot Schematics ------------------ L-41 Fighter | -6/Data Miner | Free M-22 Extractor | -6/Data Miner | Free Y-64 Sentinel | -6/Data Miner | Free A-15 Conveyor | -6/Data Miner | Free B-60 Warrior | -6/Data Miner | Free E-15 Imp | -6/Data Miner | Free Fabricated ------------ Cld. VTOL Module | x1 | -5/Factory Cld. VTOL Module | x1 | -4/Factory Alien Tech Used ----------------- Transdimensional Reconstructor Integrated Dissipator Core Regenerator Achievements -------------- None Challenges ------------ None Game ------ Seed TrapTechAutogun Manual? 0 Play Time 05:23:12 Cumulative 189.7 hours Start 2024.11.16 @ 08:29:53 End 2024.11.17 @ 12:42:57 Sessions 7 Manual Loads 0 Difficulty Rogue Special Mode None Game No. 99 Rogue 78 Adventurer 21 Explorer 0 Win Type - Total 8 Types 6/0/1/1/0/0/0/0/0 Lore% 44 Gallery% 66 Achievement% 55 Wizard Run 0 Options --------- Layout 1 ASCII 0 Keyboard 0 Movement Mouse Keybinds 0 Fullscreen 2 Font 32/SmallcapsGlow Map View 77x35 Zoom Use 0% Tactical HUD 1 Map Filters NONE Filters NONE Steam 1 RUN: 620d261e-48b0-4d7d-bc44-c5f774e06d69